[Event "Titled Tuesday Blitz May 2 Early 2023"]
[White "Bochnicka, Vladimir"]
[Black "Sakun, Volodymyr"]
[WhiteFideId "14943450"]
[BlackFideId "14114062"]
[WhiteElo "2094"]
[BlackElo "2318"]
[Result "1-0"]
[Round "04"]
[TimeControl "180+2"]
[Date "2023.05.02"]
[WhiteClock "0:00:11"]
[BlackClock "0:00:08"]

1. e4 {[%clk 0:03:00]}  c6 {[%clk 0:02:57]} 2. d4 {[%clk 0:03:00]}  d5 {[%clk 0:02:57]} 3. e5 {[%clk 0:02:59]}  c5 {[%clk 0:02:57]} 4. dxc5 {[%clk 0:02:58]}  Nc6 {[%clk 0:02:57]} 5. a3 {[%clk 0:02:56]}  Nxe5 {[%clk 0:02:55]} 6. b4 {[%clk 0:02:45]}  Nf6 {[%clk 0:02:54]} 7. Bb2 {[%clk 0:02:45]}  Nc6 {[%clk 0:02:54]} 8. Nf3 {[%clk 0:02:44]}  Bg4 {[%clk 0:02:53]} 9. Be2 {[%clk 0:02:26]}  e6 {[%clk 0:02:52]} 10. O-O {[%clk 0:02:25]}  Be7 {[%clk 0:02:51]} 11. Nbd2 {[%clk 0:02:22]}  O-O {[%clk 0:02:51]} 12. h3 {[%clk 0:02:22]}  Bh5 {[%clk 0:02:49]} 13. Ne5 {[%clk 0:02:21]}  Bxe2 {[%clk 0:02:45]} 14. Qxe2 {[%clk 0:02:22]}  Nd7 {[%clk 0:02:45]} 15. Nxd7 {[%clk 0:02:02]}  Qxd7 {[%clk 0:02:46]} 16. Rfe1 {[%clk 0:02:00]}  a5 {[%clk 0:02:39]} 17. Qg4 {[%clk 0:01:56]}  g6 {[%clk 0:02:35]} 18. Rad1 {[%clk 0:01:50]}  axb4 {[%clk 0:02:33]} 19. axb4 {[%clk 0:01:47]}  Ra4 {[%clk 0:02:33]} 20. Bc3 {[%clk 0:01:27]}  Bxc5 {[%clk 0:02:31]} 21. Ne4 {[%clk 0:01:07]}  Be7 {[%clk 0:02:23]} 22. Nf6+ {[%clk 0:00:52]}  Bxf6 {[%clk 0:02:23]} 23. Bxf6 {[%clk 0:00:52]}  h6 {[%clk 0:02:09]} 24. c3 {[%clk 0:00:30]}  Kh7 {[%clk 0:02:02]} 25. h4 {[%clk 0:00:30]}  Ne7 {[%clk 0:01:55]} 26. Qf3 {[%clk 0:00:22]}  Ng8 {[%clk 0:01:51]} 27. Bd4 {[%clk 0:00:22]}  f6 {[%clk 0:01:49]} 28. h5 {[%clk 0:00:20]}  g5 {[%clk 0:01:44]} 29. Bc5 {[%clk 0:00:16]}  Rd8 {[%clk 0:01:38]} 30. c4 {[%clk 0:00:16]}  Ra6 {[%clk 0:01:12]} 31. b5 {[%clk 0:00:14]}  Raa8 {[%clk 0:01:11]} 32. cxd5 {[%clk 0:00:14]}  exd5 {[%clk 0:01:11]} 33. Qd3+ {[%clk 0:00:13]}  Kh8 {[%clk 0:01:11]} 34. Bd4 {[%clk 0:00:07]}  Qf7 {[%clk 0:01:09]} 35. Qf5 {[%clk 0:00:07]}  Re8 {[%clk 0:01:03]} 36. Bb2 {[%clk 0:00:03]}  Kg7 {[%clk 0:01:01]} 37. g4 {[%clk 0:00:02]}  Ne7 {[%clk 0:00:52]} 38. Qd3 {[%clk 0:00:01]}  Ra4 {[%clk 0:00:44]} 39. Bd4 {[%clk 0:00:01]}  Ng8 {[%clk 0:00:39]} 40. Ra1 {[%clk 0:00:01]}  Rxa1 {[%clk 0:00:36]} 41. Rxa1 {[%clk 0:00:01]}  Re4 {[%clk 0:00:30]} 42. f3 {[%clk 0:00:02]}  Re8 {[%clk 0:00:27]} 43. Ra7 {[%clk 0:00:02]}  Re7 {[%clk 0:00:22]} 44. Ra3 {[%clk 0:00:02]}  Rd7 {[%clk 0:00:22]} 45. Rc3 {[%clk 0:00:02]}  Ne7 {[%clk 0:00:22]} 46. b6 {[%clk 0:00:03]}  Qe6 {[%clk 0:00:21]} 47. Rc8 {[%clk 0:00:02]}  Qe1+ {[%clk 0:00:20]} 48. Kg2 {[%clk 0:00:02]}  Nxc8 {[%clk 0:00:19]} 49. Qg6+ {[%clk 0:00:02]}  Kf8 {[%clk 0:00:19]} 50. Qxh6+ {[%clk 0:00:02]}  Ke8 {[%clk 0:00:19]} 51. Qg6+ {[%clk 0:00:03]}  Rf7 {[%clk 0:00:19]} 52. Qg8+ {[%clk 0:00:03]}  Ke7 {[%clk 0:00:18]} 53. Qxc8 {[%clk 0:00:02]}  Qd2+ {[%clk 0:00:18]} 54. Bf2 {[%clk 0:00:03]}  f5 {[%clk 0:00:13]} 55. Qxb7+ {[%clk 0:00:03]}  Ke6 {[%clk 0:00:14]} 56. Qc8+ {[%clk 0:00:03]}  Ke5 {[%clk 0:00:13]} 57. b7 {[%clk 0:00:04]}  fxg4 {[%clk 0:00:13]} 58. b8=Q+ {[%clk 0:00:04]}  Kf6 {[%clk 0:00:09]} 59. Qxg4 {[%clk 0:00:05]}  d4 {[%clk 0:00:05]} 60. Qd6+ {[%clk 0:00:05]}  Kg7 {[%clk 0:00:05]} 61. Qdxd4+ {[%clk 0:00:06]}  Qxd4 {[%clk 0:00:05]} 62. Qxd4+ {[%clk 0:00:06]}  Kh6 {[%clk 0:00:05]} 63. Qd6+ {[%clk 0:00:06]}  Kxh5 {[%clk 0:00:06]} 64. Qh2+ {[%clk 0:00:07]}  Kg6 {[%clk 0:00:06]} 65. Bd4 {[%clk 0:00:07]}  Rf4 {[%clk 0:00:05]} 66. Qxf4 {[%clk 0:00:07]}  gxf4 {[%clk 0:00:05]} 67. Kh3 {[%clk 0:00:07]}  Kf5 {[%clk 0:00:06]} 68. Bc3 {[%clk 0:00:07]}  Kg5 {[%clk 0:00:06]} 69. Bd2 {[%clk 0:00:08]}  Kf5 {[%clk 0:00:06]} 70. Kh4 {[%clk 0:00:08]}  Ke5 {[%clk 0:00:07]} 71. Kg4 {[%clk 0:00:09]}  Ke6 {[%clk 0:00:07]} 72. Bxf4 {[%clk 0:00:09]}  Kf6 {[%clk 0:00:08]} 73. Be3 {[%clk 0:00:10]}  Ke6 {[%clk 0:00:08]} 74. f4 {[%clk 0:00:11]} 1-0


[Site "https://www.chess.com"]

[Event "Titled Tuesday Blitz May 2 Early 2023"]
[White "Riff, Vincent"]
[Black "Davtyan, David Arm."]
[WhiteFideId "617776"]
[BlackFideId "13310046"]
[WhiteElo "2369"]
[BlackElo "2274"]
[Result "1-0"]
[Round "04"]
[TimeControl "180+2"]
[Date "2023.05.02"]
[WhiteClock "0:01:33"]
[BlackClock "0:00:17"]

1. e4 {[%clk 0:03:00]}  Nc6 {[%clk 0:02:58]} 2. Bb5 {[%clk 0:02:58]}  Nd4 {[%clk 0:02:55]} 3. Bc4 {[%clk 0:02:58]}  e6 {[%clk 0:02:44]} 4. c3 {[%clk 0:02:54]}  Nc6 {[%clk 0:02:44]} 5. d4 {[%clk 0:02:43]}  d5 {[%clk 0:02:43]} 6. exd5 {[%clk 0:02:43]}  exd5 {[%clk 0:02:41]} 7. Bd3 {[%clk 0:02:43]}  Bd6 {[%clk 0:02:24]} 8. h3 {[%clk 0:02:41]}  Nge7 {[%clk 0:02:24]} 9. Qf3 {[%clk 0:02:41]}  Be6 {[%clk 0:02:23]} 10. Ne2 {[%clk 0:02:41]}  Ng6 {[%clk 0:02:18]} 11. O-O {[%clk 0:02:36]}  Qd7 {[%clk 0:02:17]} 12. Nf4 {[%clk 0:02:32]}  O-O-O {[%clk 0:02:14]} 13. Nxe6 {[%clk 0:02:28]}  fxe6 {[%clk 0:02:11]} 14. Re1 {[%clk 0:02:29]}  Rdf8 {[%clk 0:02:09]} 15. Qg4 {[%clk 0:02:28]}  e5 {[%clk 0:01:52]} 16. Qxd7+ {[%clk 0:02:27]}  Kxd7 {[%clk 0:01:53]} 17. dxe5 {[%clk 0:02:23]}  Ncxe5 {[%clk 0:01:54]} 18. Bc2 {[%clk 0:02:20]}  c6 {[%clk 0:01:42]} 19. Be3 {[%clk 0:02:20]}  b6 {[%clk 0:01:40]} 20. b3 {[%clk 0:02:19]}  Re8 {[%clk 0:01:39]} 21. Nd2 {[%clk 0:02:18]}  Rhf8 {[%clk 0:01:40]} 22. Nf1 {[%clk 0:02:17]}  Kc7 {[%clk 0:01:28]} 23. a4 {[%clk 0:02:16]}  a5 {[%clk 0:01:25]} 24. Ng3 {[%clk 0:02:06]}  Re6 {[%clk 0:00:38]} 25. Nf5 {[%clk 0:02:05]}  Rf7 {[%clk 0:00:36]} 26. Nxd6 {[%clk 0:02:02]}  Rxd6 {[%clk 0:00:32]} 27. b4 {[%clk 0:02:00]}  axb4 {[%clk 0:00:30]} 28. cxb4 {[%clk 0:02:00]}  Nc4 {[%clk 0:00:29]} 29. Bd4 {[%clk 0:01:59]}  Rdd7 {[%clk 0:00:18]} 30. a5 {[%clk 0:01:58]}  bxa5 {[%clk 0:00:19]} 31. bxa5 {[%clk 0:01:58]}  Rfe7 {[%clk 0:00:18]} 32. a6 {[%clk 0:01:57]}  Rxe1+ {[%clk 0:00:18]} 33. Rxe1 {[%clk 0:01:57]}  Kd6 {[%clk 0:00:17]} 34. a7 {[%clk 0:01:55]}  Rd8 {[%clk 0:00:17]} 35. Bxg7 {[%clk 0:01:55]}  c5 {[%clk 0:00:17]} 36. Ra1 {[%clk 0:01:45]}  Nf4 {[%clk 0:00:17]} 37. a8=Q {[%clk 0:01:43]}  Rxa8 {[%clk 0:00:16]} 38. Rxa8 {[%clk 0:01:42]}  d4 {[%clk 0:00:17]} 39. Bh6 {[%clk 0:01:37]}  Ne2+ {[%clk 0:00:16]} 40. Kf1 {[%clk 0:01:37]}  Nc3 {[%clk 0:00:17]} 41. Bd3 {[%clk 0:01:35]}  Ne5 {[%clk 0:00:17]} 42. Bf4 {[%clk 0:01:34]}  c4 {[%clk 0:00:17]} 43. Bxc4 {[%clk 0:01:33]} 1-0


[Site "https://www.chess.com"]

[Event "Titled Tuesday Blitz May 2 Early 2023"]
[White "Munoz, Francisco Javier"]
[Black "Tymrakiewicz, Rafal"]
[WhiteFideId "128368"]
[BlackFideId "1108832"]
[WhiteElo "2383"]
[BlackElo "2151"]
[Result "1-0"]
[Round "04"]
[TimeControl "180+2"]
[Date "2023.05.02"]
[WhiteClock "0:00:04"]
[BlackClock "0:00:02"]

1. e4 {[%clk 0:03:00]}  Nf6 {[%clk 0:03:00]} 2. Nc3 {[%clk 0:03:01]}  d5 {[%clk 0:02:59]} 3. exd5 {[%clk 0:03:01]}  Nxd5 {[%clk 0:03:00]} 4. Nf3 {[%clk 0:03:02]}  Bg4 {[%clk 0:02:59]} 5. h3 {[%clk 0:03:01]}  Bh5 {[%clk 0:02:59]} 6. d4 {[%clk 0:02:59]}  e6 {[%clk 0:02:58]} 7. g4 {[%clk 0:02:59]}  Bg6 {[%clk 0:02:58]} 8. Ne5 {[%clk 0:02:59]}  Nxc3 {[%clk 0:02:49]} 9. bxc3 {[%clk 0:02:58]}  Be4 {[%clk 0:02:40]} 10. f3 {[%clk 0:02:24]}  Qh4+ {[%clk 0:02:36]} 11. Ke2 {[%clk 0:02:24]}  Bc6 {[%clk 0:02:19]} 12. Be3 {[%clk 0:02:21]}  Bd6 {[%clk 0:02:16]} 13. Nxc6 {[%clk 0:02:20]}  Nxc6 {[%clk 0:02:16]} 14. Rb1 {[%clk 0:02:06]}  O-O {[%clk 0:02:12]} 15. Rxb7 {[%clk 0:01:58]}  f5 {[%clk 0:01:44]} 16. Rg1 {[%clk 0:01:51]}  fxg4 {[%clk 0:01:13]} 17. Rxg4 {[%clk 0:01:50]}  Qf6 {[%clk 0:01:14]} 18. Bg2 {[%clk 0:01:50]}  Na5 {[%clk 0:01:05]} 19. Rb5 {[%clk 0:01:46]}  Nc4 {[%clk 0:01:03]} 20. Bg5 {[%clk 0:01:34]}  Qf7 {[%clk 0:01:02]} 21. Bh6 {[%clk 0:01:17]}  g6 {[%clk 0:00:48]} 22. Qd3 {[%clk 0:01:13]}  Na3 {[%clk 0:00:32]} 23. Ra5 {[%clk 0:00:51]}  Rfe8 {[%clk 0:00:20]} 24. f4 {[%clk 0:00:50]}  Rad8 {[%clk 0:00:18]} 25. h4 {[%clk 0:00:44]}  c6 {[%clk 0:00:14]} 26. h5 {[%clk 0:00:43]}  e5 {[%clk 0:00:10]} 27. hxg6 {[%clk 0:00:42]}  hxg6 {[%clk 0:00:09]} 28. Rxg6+ {[%clk 0:00:31]}  Kh8 {[%clk 0:00:08]} 29. Bg7+ {[%clk 0:00:30]}  Qxg7 {[%clk 0:00:06]} 30. Rxg7 {[%clk 0:00:30]}  Kxg7 {[%clk 0:00:06]} 31. Qg3+ {[%clk 0:00:19]}  Kf7 {[%clk 0:00:06]} 32. fxe5 {[%clk 0:00:20]}  Be7 {[%clk 0:00:06]} 33. Rxa7 {[%clk 0:00:19]}  Rg8 {[%clk 0:00:06]} 34. Qf2+ {[%clk 0:00:18]}  Ke6 {[%clk 0:00:06]} 35. Bxc6 {[%clk 0:00:15]}  Rdf8 {[%clk 0:00:05]} 36. Qh2 {[%clk 0:00:08]}  Nc4 {[%clk 0:00:06]} 37. Qh1 {[%clk 0:00:06]}  Ne3 {[%clk 0:00:05]} 38. Kxe3 {[%clk 0:00:06]}  Rg3+ {[%clk 0:00:05]} 39. Kd2 {[%clk 0:00:04]}  Rf2+ {[%clk 0:00:04]} 40. Kc1 {[%clk 0:00:04]}  Rgg2 {[%clk 0:00:03]} 41. Bxg2 {[%clk 0:00:03]}  Bg5+ {[%clk 0:00:04]} 42. Kb1 {[%clk 0:00:03]}  Kf5 {[%clk 0:00:02]} 43. Qh3+ {[%clk 0:00:04]}  Kf4 {[%clk 0:00:02]} 44. Rf7+ {[%clk 0:00:04]} 1-0


[Site "https://www.chess.com"]

[Event "Titled Tuesday Blitz May 2 Early 2023"]
[White "Borgaonkar Akshay"]
[Black "Marcziter, Dmitrii"]
[WhiteFideId "25639110"]
[BlackFideId "13900765"]
[WhiteElo "2063"]
[BlackElo "2162"]
[Result "1-0"]
[Round "04"]
[TimeControl "180+2"]
[Date "2023.05.02"]
[WhiteClock "0:00:05"]
[BlackClock "0:00:06"]

1. d4 {[%clk 0:03:00]}  d5 {[%clk 0:02:59]} 2. Nc3 {[%clk 0:03:00]}  Bf5 {[%clk 0:02:56]} 3. Bf4 {[%clk 0:03:00]}  c6 {[%clk 0:02:55]} 4. e3 {[%clk 0:03:00]}  e6 {[%clk 0:02:54]} 5. Nf3 {[%clk 0:03:00]}  Nf6 {[%clk 0:02:51]} 6. Ne5 {[%clk 0:03:01]}  Bb4 {[%clk 0:02:49]} 7. f3 {[%clk 0:02:58]}  h6 {[%clk 0:02:47]} 8. g4 {[%clk 0:02:57]}  Bh7 {[%clk 0:02:46]} 9. h4 {[%clk 0:02:56]}  Nfd7 {[%clk 0:02:43]} 10. a3 {[%clk 0:02:47]}  Bxc3+ {[%clk 0:02:40]} 11. bxc3 {[%clk 0:02:48]}  Nxe5 {[%clk 0:02:39]} 12. Bxe5 {[%clk 0:02:48]}  f6 {[%clk 0:02:40]} 13. Bg3 {[%clk 0:02:47]}  Nd7 {[%clk 0:02:39]} 14. Qd2 {[%clk 0:02:44]}  Qe7 {[%clk 0:02:34]} 15. Rb1 {[%clk 0:02:42]}  b5 {[%clk 0:02:33]} 16. Bd3 {[%clk 0:02:27]}  Bxd3 {[%clk 0:02:32]} 17. Qxd3 {[%clk 0:02:26]}  O-O {[%clk 0:02:31]} 18. O-O {[%clk 0:02:09]}  e5 {[%clk 0:02:28]} 19. e4 {[%clk 0:02:04]}  Nb6 {[%clk 0:02:22]} 20. Rfe1 {[%clk 0:02:00]}  Rae8 {[%clk 0:02:16]} 21. exd5 {[%clk 0:01:54]}  Nxd5 {[%clk 0:02:13]} 22. dxe5 {[%clk 0:01:54]}  fxe5 {[%clk 0:02:11]} 23. Rxe5 {[%clk 0:01:54]}  Qxa3 {[%clk 0:02:08]} 24. Rbe1 {[%clk 0:01:41]}  Rxe5 {[%clk 0:02:06]} 25. Bxe5 {[%clk 0:01:40]}  Qc5+ {[%clk 0:02:01]} 26. Bd4 {[%clk 0:01:38]}  Qd6 {[%clk 0:02:00]} 27. Be5 {[%clk 0:01:37]}  Qc5+ {[%clk 0:02:00]} 28. Kg2 {[%clk 0:01:31]}  a5 {[%clk 0:01:51]} 29. Kg3 {[%clk 0:01:16]}  a4 {[%clk 0:01:49]} 30. Qg6 {[%clk 0:01:14]}  Qe7 {[%clk 0:01:34]} 31. Qxc6 {[%clk 0:01:05]}  Qf7 {[%clk 0:01:31]} 32. Rf1 {[%clk 0:00:49]}  Re8 {[%clk 0:01:08]} 33. f4 {[%clk 0:00:46]}  Ne3 {[%clk 0:01:02]} 34. Rf3 {[%clk 0:00:42]}  Nxc2 {[%clk 0:00:55]} 35. g5 {[%clk 0:00:38]}  h5 {[%clk 0:00:49]} 36. g6 {[%clk 0:00:35]}  Qe6 {[%clk 0:00:39]} 37. Qe4 {[%clk 0:00:24]}  Qg4+ {[%clk 0:00:37]} 38. Kf2 {[%clk 0:00:24]}  Qxh4+ {[%clk 0:00:36]} 39. Kf1 {[%clk 0:00:18]}  Qh1+ {[%clk 0:00:32]} 40. Kf2 {[%clk 0:00:16]}  Rd8 {[%clk 0:00:25]} 41. Rd3 {[%clk 0:00:03]}  Qh2+ {[%clk 0:00:18]} 42. Kf1 {[%clk 0:00:03]}  Re8 {[%clk 0:00:12]} 43. Qd5+ {[%clk 0:00:02]}  Kh8 {[%clk 0:00:11]} 44. Bxg7+ {[%clk 0:00:03]}  Kxg7 {[%clk 0:00:09]} 45. Qf7+ {[%clk 0:00:04]}  Kh8 {[%clk 0:00:06]} 46. Qh7# {[%clk 0:00:05]} 1-0


[Site "https://www.chess.com"]

[Event "Titled Tuesday Blitz May 2 Early 2023"]
[White "Simonian, Hrair"]
[Black "Bernat, David"]
[WhiteFideId "13302337"]
[BlackFideId "2099225"]
[WhiteElo "2447"]
[BlackElo "1862"]
[Result "1-0"]
[Round "04"]
[TimeControl "180+2"]
[Date "2023.05.02"]
[WhiteClock "0:00:16"]
[BlackClock "0:00:01"]

1. e4 {[%clk 0:03:00]}  c5 {[%clk 0:03:00]} 2. Nf3 {[%clk 0:03:00]}  g6 {[%clk 0:03:00]} 3. d4 {[%clk 0:03:00]}  cxd4 {[%clk 0:03:01]} 4. Qxd4 {[%clk 0:02:59]}  Nf6 {[%clk 0:03:02]} 5. Nc3 {[%clk 0:02:57]}  Nc6 {[%clk 0:03:02]} 6. Qa4 {[%clk 0:02:57]}  d6 {[%clk 0:03:03]} 7. Bf4 {[%clk 0:02:55]}  Bg7 {[%clk 0:03:03]} 8. e5 {[%clk 0:02:47]}  dxe5 {[%clk 0:03:03]} 9. Nxe5 {[%clk 0:02:48]}  O-O {[%clk 0:03:03]} 10. Nxc6 {[%clk 0:02:48]}  bxc6 {[%clk 0:03:04]} 11. Bd3 {[%clk 0:02:48]}  Qb6 {[%clk 0:03:00]} 12. Qb3 {[%clk 0:02:39]}  Be6 {[%clk 0:02:55]} 13. Qxb6 {[%clk 0:02:35]}  axb6 {[%clk 0:02:56]} 14. a3 {[%clk 0:02:28]}  Nd5 {[%clk 0:02:49]} 15. Nxd5 {[%clk 0:02:03]}  Bxd5 {[%clk 0:02:49]} 16. O-O {[%clk 0:01:59]}  Bxb2 {[%clk 0:02:45]} 17. Rab1 {[%clk 0:01:59]}  Bxa3 {[%clk 0:02:43]} 18. Rxb6 {[%clk 0:01:58]}  Bc5 {[%clk 0:02:27]} 19. Rb7 {[%clk 0:01:57]}  Kg7 {[%clk 0:02:20]} 20. Re1 {[%clk 0:01:50]}  Bd6 {[%clk 0:02:07]} 21. Bxd6 {[%clk 0:01:29]}  exd6 {[%clk 0:02:07]} 22. c4 {[%clk 0:01:29]}  Ra3 {[%clk 0:01:27]} 23. Bf1 {[%clk 0:01:22]}  Bxc4 {[%clk 0:01:16]} 24. Bxc4 {[%clk 0:01:23]}  d5 {[%clk 0:01:16]} 25. Bf1 {[%clk 0:01:23]}  Rc3 {[%clk 0:01:01]} 26. Rc7 {[%clk 0:01:17]}  d4 {[%clk 0:00:48]} 27. Ree7 {[%clk 0:01:10]}  c5 {[%clk 0:00:45]} 28. g3 {[%clk 0:01:08]}  Kf6 {[%clk 0:00:26]} 29. Red7 {[%clk 0:01:08]}  Ke6 {[%clk 0:00:20]} 30. Kg2 {[%clk 0:00:55]}  f5 {[%clk 0:00:15]} 31. Rxh7 {[%clk 0:00:40]}  Rb8 {[%clk 0:00:15]} 32. Rhg7 {[%clk 0:00:34]}  Kf6 {[%clk 0:00:11]} 33. Rcf7+ {[%clk 0:00:34]}  Ke6 {[%clk 0:00:11]} 34. Rc7 {[%clk 0:00:30]}  Kf6 {[%clk 0:00:11]} 35. Rgd7 {[%clk 0:00:27]}  Rb2 {[%clk 0:00:10]} 36. Rd6+ {[%clk 0:00:24]}  Kg5 {[%clk 0:00:06]} 37. h4+ {[%clk 0:00:20]}  Kh6 {[%clk 0:00:06]} 38. Rcc6 {[%clk 0:00:19]}  Rcc2 {[%clk 0:00:04]} 39. Rxg6+ {[%clk 0:00:20]}  Kh7 {[%clk 0:00:05]} 40. Rgd6 {[%clk 0:00:15]}  Rxf2+ {[%clk 0:00:05]} 41. Kg1 {[%clk 0:00:15]}  Rxf1+ {[%clk 0:00:01]} 42. Kxf1 {[%clk 0:00:16]} 1-0


[Site "https://www.chess.com"]

[Event "Titled Tuesday Blitz May 2 Early 2023"]
[White "Kim, Sergey"]
[Black "Khromkin, Andrey"]
[WhiteFideId "13700570"]
[BlackFideId "4154126"]
[WhiteElo "2295"]
[BlackElo "2191"]
[Result "0-1"]
[Round "04"]
[TimeControl "180+2"]
[Date "2023.05.02"]
[WhiteClock "0:00:52"]
[BlackClock "0:00:45"]

1. d4 {[%clk 0:03:00]}  d5 {[%clk 0:02:59]} 2. c4 {[%clk 0:03:00]}  dxc4 {[%clk 0:02:59]} 3. e3 {[%clk 0:03:00]}  e5 {[%clk 0:02:59]} 4. Bxc4 {[%clk 0:03:00]}  exd4 {[%clk 0:02:59]} 5. exd4 {[%clk 0:03:00]}  Bd6 {[%clk 0:02:59]} 6. Nf3 {[%clk 0:03:00]}  Nf6 {[%clk 0:03:00]} 7. O-O {[%clk 0:03:00]}  O-O {[%clk 0:03:00]} 8. h3 {[%clk 0:03:00]}  h6 {[%clk 0:02:59]} 9. Nc3 {[%clk 0:03:00]}  Nc6 {[%clk 0:02:59]} 10. Re1 {[%clk 0:02:59]}  Bf5 {[%clk 0:02:59]} 11. d5 {[%clk 0:02:59]}  Ne7 {[%clk 0:02:57]} 12. Nd4 {[%clk 0:02:58]}  Bh7 {[%clk 0:02:57]} 13. Qf3 {[%clk 0:02:58]}  Ng6 {[%clk 0:02:51]} 14. Nf5 {[%clk 0:02:44]}  Ne5 {[%clk 0:02:47]} 15. Rxe5 {[%clk 0:02:32]}  Bxe5 {[%clk 0:02:47]} 16. Bd2 {[%clk 0:02:09]}  Qd7 {[%clk 0:02:39]} 17. Bd3 {[%clk 0:02:05]}  a6 {[%clk 0:02:21]} 18. Re1 {[%clk 0:01:57]}  Rfe8 {[%clk 0:02:13]} 19. Bc2 {[%clk 0:01:41]}  Bxc3 {[%clk 0:01:53]} 20. Rxe8+ {[%clk 0:01:40]}  Rxe8 {[%clk 0:01:53]} 21. Bxc3 {[%clk 0:01:41]}  Bxf5 {[%clk 0:01:48]} 22. Bxf5 {[%clk 0:01:35]}  Qxd5 {[%clk 0:01:48]} 23. Qf4 {[%clk 0:01:32]}  Qd1+ {[%clk 0:01:45]} 24. Kh2 {[%clk 0:01:30]}  Qd6 {[%clk 0:01:45]} 25. Qxd6 {[%clk 0:01:27]}  cxd6 {[%clk 0:01:45]} 26. f3 {[%clk 0:01:24]}  Nd5 {[%clk 0:01:29]} 27. Bd4 {[%clk 0:01:23]}  Nf4 {[%clk 0:00:53]} 28. Bb6 {[%clk 0:00:52]}  Re2 {[%clk 0:00:48]} 29. Kg3 {[%clk 0:00:52]}  g5 {[%clk 0:00:45]} 0-1


[Site "https://www.chess.com"]

[Event "Titled Tuesday Blitz May 2 Early 2023"]
[White "Todorovic, Bojan"]
[Black "Golichenko, Ilija"]
[WhiteFideId "917087"]
[BlackFideId "14117223"]
[WhiteElo "2266"]
[BlackElo "2339"]
[Result "1-0"]
[Round "04"]
[TimeControl "180+2"]
[Date "2023.05.02"]
[WhiteClock "0:00:21"]
[BlackClock "0:00:06"]

1. d4 {[%clk 0:02:59]}  Nf6 {[%clk 0:02:59]} 2. c4 {[%clk 0:02:58]}  e6 {[%clk 0:02:59]} 3. Nf3 {[%clk 0:02:57]}  d5 {[%clk 0:02:56]} 4. Bg5 {[%clk 0:02:54]}  Nbd7 {[%clk 0:02:52]} 5. e3 {[%clk 0:02:53]}  c5 {[%clk 0:02:47]} 6. cxd5 {[%clk 0:02:48]}  exd5 {[%clk 0:02:25]} 7. Nc3 {[%clk 0:02:47]}  Qa5 {[%clk 0:02:21]} 8. Bb5 {[%clk 0:02:44]}  Ne4 {[%clk 0:02:18]} 9. O-O {[%clk 0:02:41]}  Nxc3 {[%clk 0:02:12]} 10. Bxd7+ {[%clk 0:02:40]}  Bxd7 {[%clk 0:02:12]} 11. bxc3 {[%clk 0:02:38]}  f6 {[%clk 0:02:10]} 12. Bf4 {[%clk 0:02:36]}  c4 {[%clk 0:02:02]} 13. e4 {[%clk 0:02:30]}  dxe4 {[%clk 0:01:45]} 14. Nd2 {[%clk 0:02:23]}  Qd5 {[%clk 0:01:19]} 15. Nxe4 {[%clk 0:02:21]}  O-O-O {[%clk 0:01:01]} 16. f3 {[%clk 0:02:03]}  f5 {[%clk 0:00:51]} 17. Nd2 {[%clk 0:01:51]}  h6 {[%clk 0:00:51]} 18. Re1 {[%clk 0:01:49]}  g5 {[%clk 0:00:49]} 19. Be5 {[%clk 0:01:47]}  Rg8 {[%clk 0:00:46]} 20. Bf6 {[%clk 0:01:39]}  Re8 {[%clk 0:00:46]} 21. Rxe8+ {[%clk 0:01:38]}  Bxe8 {[%clk 0:00:47]} 22. Qe2 {[%clk 0:01:38]}  Bc6 {[%clk 0:00:44]} 23. Qxc4 {[%clk 0:01:34]}  g4 {[%clk 0:00:35]} 24. Qxd5 {[%clk 0:01:32]}  Bxd5 {[%clk 0:00:36]} 25. f4 {[%clk 0:01:21]}  h5 {[%clk 0:00:32]} 26. c4 {[%clk 0:01:20]}  Bf7 {[%clk 0:00:32]} 27. d5 {[%clk 0:01:17]}  Bc5+ {[%clk 0:00:30]} 28. Kf1 {[%clk 0:01:17]}  Be3 {[%clk 0:00:21]} 29. Nb3 {[%clk 0:01:08]}  Bxf4 {[%clk 0:00:21]} 30. g3 {[%clk 0:01:05]}  Bh6 {[%clk 0:00:21]} 31. Re1 {[%clk 0:01:00]}  Re8 {[%clk 0:00:16]} 32. Be5 {[%clk 0:00:54]}  b5 {[%clk 0:00:13]} 33. Nd4 {[%clk 0:00:47]}  bxc4 {[%clk 0:00:12]} 34. Nxf5 {[%clk 0:00:47]}  Bd2 {[%clk 0:00:11]} 35. Nd6+ {[%clk 0:00:46]}  Kd7 {[%clk 0:00:10]} 36. Nxe8 {[%clk 0:00:33]}  Bxe8 {[%clk 0:00:09]} 37. Rb1 {[%clk 0:00:28]}  c3 {[%clk 0:00:06]} 38. Rb7+ {[%clk 0:00:27]}  Kc8 {[%clk 0:00:05]} 39. Rc7+ {[%clk 0:00:24]}  Kd8 {[%clk 0:00:05]} 40. d6 {[%clk 0:00:23]}  Bb5+ {[%clk 0:00:05]} 41. Kf2 {[%clk 0:00:23]}  Bd3 {[%clk 0:00:05]} 42. Bf6+ {[%clk 0:00:21]}  Ke8 {[%clk 0:00:05]} 43. d7+ {[%clk 0:00:21]}  Kf7 {[%clk 0:00:06]} 1-0


[Site "https://www.chess.com"]

[Event "Titled Tuesday Blitz May 2 Early 2023"]
[White "Van Foreest, Machteld"]
[Black "Lenaerts, Lennert"]
[WhiteFideId "1051563"]
[BlackFideId "211435"]
[WhiteElo "2018"]
[BlackElo "2334"]
[Result "0-1"]
[Round "04"]
[TimeControl "180+2"]
[Date "2023.05.02"]
[WhiteClock "0:00:16"]
[BlackClock "0:01:10"]

1. e4 {[%clk 0:03:00]}  e5 {[%clk 0:02:57]} 2. Nf3 {[%clk 0:03:00]}  Nc6 {[%clk 0:02:56]} 3. Bc4 {[%clk 0:03:00]}  Bc5 {[%clk 0:02:56]} 4. d3 {[%clk 0:02:57]}  Nf6 {[%clk 0:02:56]} 5. O-O {[%clk 0:02:57]}  O-O {[%clk 0:02:56]} 6. Bg5 {[%clk 0:02:53]}  h6 {[%clk 0:02:56]} 7. Bh4 {[%clk 0:02:53]}  Be7 {[%clk 0:02:53]} 8. c3 {[%clk 0:02:53]}  d6 {[%clk 0:02:52]} 9. Nbd2 {[%clk 0:02:50]}  a6 {[%clk 0:02:52]} 10. a4 {[%clk 0:02:49]}  Be6 {[%clk 0:02:52]} 11. Re1 {[%clk 0:02:41]}  Qd7 {[%clk 0:02:51]} 12. d4 {[%clk 0:02:35]}  exd4 {[%clk 0:02:32]} 13. cxd4 {[%clk 0:02:33]}  d5 {[%clk 0:02:24]} 14. exd5 {[%clk 0:02:04]}  Nxd5 {[%clk 0:01:48]} 15. Bxe7 {[%clk 0:01:59]}  Ncxe7 {[%clk 0:01:49]} 16. Ne5 {[%clk 0:01:58]}  Qd8 {[%clk 0:01:48]} 17. Ne4 {[%clk 0:01:52]}  Nf4 {[%clk 0:01:42]} 18. Bxe6 {[%clk 0:01:29]}  Nxe6 {[%clk 0:01:43]} 19. Qb3 {[%clk 0:01:15]}  Qd5 {[%clk 0:01:38]} 20. Qxd5 {[%clk 0:00:59]}  Nxd5 {[%clk 0:01:39]} 21. Nc5 {[%clk 0:00:53]}  b6 {[%clk 0:01:28]} 22. Nxe6 {[%clk 0:00:47]}  fxe6 {[%clk 0:01:29]} 23. Rac1 {[%clk 0:00:39]}  Rad8 {[%clk 0:01:22]} 24. Rc6 {[%clk 0:00:34]}  Rd6 {[%clk 0:01:19]} 25. Rxd6 {[%clk 0:00:32]}  cxd6 {[%clk 0:01:20]} 26. Nd7 {[%clk 0:00:33]}  Rd8 {[%clk 0:01:15]} 27. Nxb6 {[%clk 0:00:19]}  Nxb6 {[%clk 0:01:16]} 28. Rxe6 {[%clk 0:00:19]}  Nxa4 {[%clk 0:01:12]} 29. b3 {[%clk 0:00:19]}  Nc3 {[%clk 0:01:12]} 30. Re7 {[%clk 0:00:20]}  Rb8 {[%clk 0:01:10]} 31. g3 {[%clk 0:00:16]}  Rxb3 {[%clk 0:01:10]} 32. Rd7 {[%clk 0:00:16]}  Nb5 {[%clk 0:01:10]} 0-1


[Site "https://www.chess.com"]